fUST/lending_fUST_20240315
["ID","MTS","AMOUNT","RATE_DAILY","PERIOD"]
[318855588,1710434455799,623.69243659,0.00019537,2]
[318855589,1710434460535,24900.0,0.00019375,2]
[318855590,1710434470703,15955.09649815,0.00019537,2]
[318855591,1710434475799,623.69243659,0.00019537,2]
[318855592,1710434488731,15168.90936492,0.00019537,2]
[318855593,1710434614313,184.71260849,0.00019555,2]
[318855594,1710434622564,1463.32514324,0.00019554,2]
[318855595,1710434630833,951.06298908,0.00019554,2]
[318855598,1710434660384,640.376693,0.00019465,2]
[318855606,1710434793198,155.16447434,0.00019545,2]
[318855637,1710434953278,24900.0,0.00019181,2]
[318855639,1710434957763,1081.53934975,0.0001918,2]
[318855689,1710435032757,-210.72820181,0.00019726,2]
[318855691,1710435032768,-184.71260849,0.00019727,2]
[318855693,1710435032778,-455.19155185,0.00019728,2]
[318855695,1710435032789,-381.78579349,0.00019729,2]
[318855697,1710435032798,-155.16292107,0.00019729,2]
[318855699,1710435032807,-2599.63259754,0.00019731,2]
[318855701,1710435032817,-300.0,0.00019736,2]
[318855703,1710435032827,-2000.0,0.00019782,2]
[318855705,1710435032837,-2000.0,0.000198,2]
[318855707,1710435032847,-193.74423656,0.0002,2]
[318855709,1710435032857,-310.29748319,0.00020165,2]
[318855711,1710435032867,-2000.0,0.00020264,2]
[318855713,1710435032878,-12656.70367341,0.00020923,2]
[318855714,1710435032888,-500.0,0.00020924,2]
[318855717,1710435032898,-86683.89294788,0.00020925,2]
[318855719,1710435032907,-611.85697244,0.00021023,2]
[318855720,1710435032917,-178.08956204,0.00021023,2]
[318855722,1710435032927,-500.0,0.00021023,2]
[318855725,1710435032937,-500.0,0.00021023,2]
[318855726,1710435032947,-500.0,0.00021023,2]
[318855728,1710435032957,-500.0,0.00021023,2]
[318855730,1710435032967,-500.0,0.00021023,2]
[318855732,1710435032981,-500.0,0.00021023,2]
[318855734,1710435032991,-500.0,0.00021023,2]
[318855736,1710435033001,-500.0,0.00021023,2]
[318855738,1710435033011,-442.60493212,0.00021023,2]
[318855740,1710435033022,-500.0,0.00021023,2]
[318855742,1710435033032,-500.0,0.00021023,2]
[318855743,1710435033043,-500.0,0.00021023,2]
[318855744,1710435033054,-500.0,0.00021023,2]
[318855745,1710435033064,-250.1359032,0.00021024,2]
[318855746,1710435033074,-500.0,0.00021024,2]
[318855747,1710435033084,-370.80290693,0.00021024,2]
[318855748,1710435033094,-500.0,0.00021024,2]
[318855749,1710435033104,-500.0,0.00021024,2]
[318855751,1710435033114,-500.0,0.00021024,2]
[318855753,1710435033125,-500.0,0.00021024,2]
[318855755,1710435033136,-500.0,0.00021024,2]
[318855757,1710435033146,-500.0,0.00021024,2]
[318855759,1710435033159,-500.0,0.00021024,2]
[318855761,1710435033171,-500.0,0.00021024,2]
[318855762,1710435033181,-500.0,0.00021024,2]
[318855764,1710435033191,-381.50090172,0.00021024,2]
[318855765,1710435033202,-500.0,0.00021024,2]
[318855766,1710435033212,-500.0,0.00021024,2]
[318855767,1710435033224,-500.0,0.00021024,2]
[318855768,1710435033234,-500.0,0.00021024,2]
[318855769,1710435033243,-500.0,0.00021024,2]
[318855770,1710435033253,-500.0,0.00021024,2]
[318855771,1710435033264,-500.0,0.00021024,2]
[318855773,1710435033275,-500.0,0.00021024,2]
[318855775,1710435033285,-500.0,0.00021024,2]
[318855777,1710435033295,-500.0,0.00021024,2]
[318855778,1710435033306,-369.64082348,0.00021024,2]
[318855779,1710435033317,-153.0,0.000211,2]
[318855781,1710435033327,-153.0,0.000211,2]
[318855783,1710435033338,-153.0,0.000211,2]
[318855785,1710435033349,-153.0,0.000211,2]
[318855786,1710435033359,-153.0,0.000211,2]
[318855788,1710435033370,-153.0,0.000211,2]
[318855790,1710435033381,-153.0,0.000211,2]
[318855792,1710435033390,-153.0,0.000211,2]
[318855794,1710435033400,-153.0,0.000211,2]
[318855796,1710435033410,-500.0,0.00021139,2]
[318855798,1710435033418,-535.86936706,0.00021139,2]
[318855799,1710435033429,-500.0,0.00021139,2]
[318855801,1710435033438,-500.0,0.00021139,2]
[318855802,1710435033448,-500.0,0.00021139,2]
[318855803,1710435033457,-295.9926062,0.000212,2]
[318855805,1710435033466,-153.0,0.000212,2]
[318855807,1710435033475,-386.3721122,0.000212,2]
[318855809,1710435033484,-201.1026188,0.000212,2]
[318855811,1710435033494,-153.0,0.000212,2]
[318855813,1710435033503,-153.0,0.000212,2]
[318855815,1710435033512,-153.0,0.000212,2]
[318855817,1710435033522,-201.1026188,0.000212,2]
[318855819,1710435033531,-153.0,0.000212,2]
[318855821,1710435033541,-153.0,0.000212,2]
[318855823,1710435033551,-153.0,0.000212,2]
[318855825,1710435033560,-153.0,0.000212,2]
[318855827,1710435033569,-153.0,0.000212,2]
[318855829,1710435033578,-201.1026188,0.000212,2]
[318855831,1710435033588,-153.0,0.000212,2]
[318855833,1710435033597,-153.0,0.000212,2]
[318855835,1710435033606,-153.0,0.000212,2]
[318855837,1710435033617,-153.0,0.000212,2]
[318855839,1710435033626,-153.0,0.000212,2]
[318855841,1710435033635,-731.9418,0.000212,2]
[318855843,1710435033644,-731.9418,0.000212,2]
[318855845,1710435033654,-6676.33040791,0.00021205,2]
[318855847,1710435033666,-502.24266066,0.00021225,2]
[318855849,1710435033678,-500.0,0.00021225,2]
[318855851,1710435033687,-500.0,0.00021225,2]
[318855853,1710435033696,-500.0,0.00021225,2]
[318855855,1710435033706,-500.0,0.00021225,2]
[318855857,1710435033716,-593.73479584,0.00021225,2]
[318855859,1710435033725,-500.0,0.00021225,2]
[318855861,1710435033734,-500.0,0.00021225,2]
[318855863,1710435033745,-500.0,0.00021225,2]
[318855865,1710435033755,-500.00401048,0.00021225,2]
[318855866,1710435033765,-500.0,0.00021225,2]
[318855868,1710435033774,-500.0,0.00021225,2]
[318855869,1710435033783,-500.0,0.00021225,2]
[318855870,1710435033793,-500.0,0.00021225,2]
[318855871,1710435033802,-500.0,0.00021225,2]
[318855872,1710435033812,-501.6448559,0.00021225,2]
[318855873,1710435033822,-500.0,0.00021225,2]
[318855874,1710435033831,-446.73264672,0.00021225,2]
[318855875,1710435033840,-500.0,0.00021225,2]
[318855876,1710435033849,-500.0,0.00021225,2]
[318855877,1710435033859,-500.0,0.00021225,2]
[318855878,1710435033869,-494.91909945,0.00021225,2]
[318855879,1710435033879,-361.15332449,0.00021225,2]
[318855880,1710435033889,-1591.33542413,0.00021226,2]
[318855881,1710435033898,-317.74135761,0.00021226,2]
[318855882,1710435033907,-1382.95621485,0.00021226,2]
[318855883,1710435033916,-219.77275474,0.00021226,2]
[318855884,1710435033925,-15265.62274168,0.00021226,2]
[318855885,1710435033935,-188.50655472,0.00021226,2]
[318855886,1710435033944,-1476.33062054,0.00021226,2]
[318855887,1710435033953,-262.48262514,0.00021226,7]
[318855888,1710435033962,-204.82799833,0.00021226,2]
[318855889,1710435033971,-528.8455798,0.00021226,2]
[318855890,1710435033981,-45693.7557041,0.00021226,2]
[318855891,1710435033990,-153.0,0.000213,2]
[318855892,1710435033999,-1483.43269444,0.00021339,2]
[318855893,1710435034008,-200.0,0.00021373,2]
[318855894,1710435034018,-298.14435932,0.00021423,2]
[318855895,1710435034030,-3222.73716798,0.00021424,2]
[318855896,1710435034040,-500.0,0.00021424,2]
[318855897,1710435034049,-528.49904109,0.00021424,2]
[318855898,1710435034058,-1081.27808645,0.00021442,2]
[318855899,1710435034067,-64869.74975681,0.00021443,60]
[318855900,1710435034081,-2245.61145002,0.00021443,60]
[318855901,1710435034095,-147660.77018163,0.00021443,60]
[318855902,1710435034108,-3222.45022152,0.00021443,60]
[318855903,1710435034120,-81628.97727854,0.00021443,60]
[318855904,1710435034130,-428.91852307,0.00021443,2]
[318855905,1710435034141,-218.58223864,0.00021443,2]
[318855906,1710435034150,-12191.64927192,0.00021443,30]
[318855907,1710435034162,-7474.35072808,0.00021443,30]
[318855908,1710435034171,-13124.23410533,0.00021443,5]
[318855909,1710435034182,-16479.84074055,0.00021443,5]
[318855923,1710435038217,-88965.52670185,0.00021443,5]
[318855924,1710435038226,-216765.30571048,0.00021443,60]
[318855925,1710435038236,-1260.30870445,0.00021443,2]
[318855926,1710435038245,-200.08023156,0.00021443,30]
[318855927,1710435038255,-75181.10149921,0.00021443,30]
[318855928,1710435038266,-4684.3875,0.00021443,30]
[318855929,1710435038277,-453.22118573,0.00021443,30]
[318855931,1710435038289,-2287.29842245,0.00021443,30]
[318855933,1710435038300,-17632.44914837,0.00021443,30]
[318855935,1710435038309,-314.866229,0.00021443,2]
[318855937,1710435038318,-175.75,0.00021443,30]
[318855938,1710435038327,-91296.28770544,0.00021443,60]
[318855940,1710435038339,-2798.80336675,0.00021443,60]
[318855941,1710435038353,-43768.02962882,0.00021443,60]
[318855942,1710435038365,-15792.48629059,0.00021443,60]
[318855943,1710435038379,-22181.93792082,0.00021443,60]
[318855944,1710435038390,-24896.91692118,0.00021443,60]
[318855981,1710435040273,-10010.0,0.00021443,60]
[318855993,1710435041934,-7462.56272297,0.00021443,60]
[318855994,1710435041947,-1956.7,0.00021443,60]
[318856037,1710435043282,-8804.85447412,0.00021443,60]
[318856043,1710435043325,-3889.38047768,0.00021443,60]
[318856045,1710435043336,-2219.53311218,0.00021443,60]
[318856047,1710435043350,-404860.93640033,0.00021443,60]
[318856049,1710435043360,-1460.69521238,0.00021443,60]
[318856106,1710435046898,34308.4748,0.00017803,7]
[318856188,1710435047919,-196.19295639,0.00021229,2]
[318856190,1710435047929,-2137.67670161,0.00021343,2]
[318856192,1710435047938,-2201.197187,0.00021443,60]
[318856194,1710435047950,-15407.95919882,0.00021443,60]
[318856197,1710435047967,-7097.69675272,0.00021443,60]
[318856199,1710435047978,-1386415.31226229,0.00021443,60]
[318856229,1710435220893,14736.27123173,0.000187,2]
[318856232,1710435238343,3436.60994288,0.00019435,2]
[318856233,1710435249199,300.0,0.00019434,2]
[318856234,1710435257418,1633.48510707,0.00019433,2]
[318856241,1710435492004,24900.0,0.00018776,2]
[318856242,1710435565942,320.188346,0.00019353,2]
[318856243,1710435578690,455.19155185,0.0001961,2]
[318856244,1710435597226,381.78579349,0.0001961,2]
[318856245,1710435602370,3223.52670201,0.0001961,2]
[318856246,1710435607060,1952.75166099,0.0001961,2]
[318856249,1710435684553,184.71260849,0.0001961,2]
[318856252,1710435714219,455.19155185,0.0001961,2]
[318856253,1710435734240,381.78579349,0.0001961,2]
[318856254,1710435735334,3223.52670201,0.0001961,2]
[318856258,1710435962815,157.684887,0.00019375,2]
[318856262,1710436061880,155.1388244,0.00019375,2]
[318856265,1710436134962,2678.7891154,0.00019518,2]
[318856290,1710436232401,-2599.63259754,0.00019612,2]
[318856292,1710436232411,-381.78579349,0.00019612,2]
[318856294,1710436232421,-455.19155185,0.00019613,2]
[318856296,1710436232431,-300.0,0.00019625,2]
[318856298,1710436232440,-3727.4748861,0.00019626,2]
[318856300,1710436232450,-199.17369734,0.00019635,2]
[318856302,1710436232459,-3062.23706968,0.0001988,9]
[318856303,1710436232468,-160.094173,0.00020011,2]
[318856305,1710436232478,-2000.0,0.00020235,2]
[318856308,1710436232487,-500.0,0.00021225,2]
[318856310,1710436232496,-317.43548809,0.00021225,2]
[318856311,1710436232505,-500.0,0.00021225,2]
[318856314,1710436232515,-500.0,0.00021225,2]
[318856315,1710436232525,-500.0,0.00021225,2]
[318856317,1710436232535,-500.0,0.00021225,2]
[318856319,1710436232544,-500.0,0.00021225,2]
[318856321,1710436232554,-360.3,0.00021225,2]
[318856324,1710436232563,-500.0,0.00021225,2]
[318856326,1710436232574,-500.0,0.00021225,2]
[318856327,1710436232583,-500.0,0.00021225,2]
[318856329,1710436232592,-500.0,0.00021225,2]
[318856331,1710436232601,-500.0,0.00021225,2]
[318856333,1710436232610,-503.1918116,0.0002138,2]
[318856353,1710436238576,-184.71260849,0.00019611,2]
[318856354,1710436238587,-459.20355537,0.0002138,2]
[318856355,1710436238597,-198.76290621,0.0002141,2]
[318856356,1710436238607,-662.23946589,0.00021418,2]
[318856357,1710436238617,-920.5561461,0.00021418,2]
[318856358,1710436238626,-500.0,0.00021439,2]
[318856359,1710436238635,-338.7091611,0.00021441,2]
[318856360,1710436238644,-155.53158992,0.00021441,2]
[318856361,1710436238654,-310.25285782,0.00021441,2]
[318856362,1710436238663,-155.5463427,0.00021441,2]
[318856364,1710436238673,-169.24054627,0.00021441,2]
[318856365,1710436238682,-598.26031727,0.00021441,2]
[318856366,1710436238691,-324.21878164,0.00021441,2]
[318856367,1710436238701,-1474.94168341,0.00021441,2]
[318856368,1710436238711,-237.65487316,0.00021441,2]
[318856369,1710436238721,-331.46232898,0.00021441,2]
[318856370,1710436238730,-310.25285782,0.00021441,2]
[318856371,1710436238740,-155.34799879,0.00021442,2]
[318856372,1710436238749,-210.74134935,0.00021442,2]
[318856373,1710436238760,-155.69380675,0.00021442,2]
[318856374,1710436238769,-155.31466322,0.00021442,2]
[318856375,1710436238778,-400.0,0.00021442,2]
[318856376,1710436238788,-244.03400003,0.00021442,2]
[318856377,1710436238797,-155.45080734,0.00021442,2]
[318856378,1710436238806,-240.89644182,0.00021442,2]
[318856379,1710436238816,-155.48276011,0.00021442,2]
[318856380,1710436238829,-3430.7329,0.00021442,2]
[318856381,1710436238838,-163.35553047,0.00021442,2]
[318856382,1710436238847,-500.0,0.00021443,2]
[318856383,1710436238857,-500.0,0.00021443,2]
[318856384,1710436238867,-500.0,0.00021443,2]
[318856385,1710436238876,-339.40541378,0.00021443,2]
[318856386,1710436238885,-697.73,0.00021443,2]
[318856387,1710436238894,-697.73,0.00021443,2]
[318856388,1710436238903,-697.73,0.00021443,2]
[318856389,1710436238913,-697.73,0.00021443,2]
[318856390,1710436238923,-697.73,0.00021443,2]
[318856391,1710436238932,-697.73,0.00021443,2]
[318856392,1710436238941,-697.73,0.00021443,2]
[318856393,1710436238950,-697.73,0.00021443,2]
[318856394,1710436238959,-697.73,0.00021443,2]
[318856395,1710436238969,-697.73,0.00021443,2]
[318856396,1710436238978,-697.73,0.00021443,2]
[318856397,1710436238988,-697.73,0.00021443,2]
[318856398,1710436238997,-697.73,0.00021443,2]
[318856399,1710436239007,-697.73,0.00021443,2]
[318856400,1710436239017,-697.73,0.00021443,2]
[318856401,1710436239026,-697.73,0.00021443,2]
[318856402,1710436239035,-697.73,0.00021443,2]
[318856403,1710436239045,-697.73,0.00021443,2]
[318856404,1710436239055,-697.73,0.00021443,2]
[318856405,1710436239064,-697.73,0.00021443,2]
[318856406,1710436239075,-697.73,0.00021443,2]
[318856407,1710436239086,-697.73,0.00021443,2]
[318856408,1710436239095,-697.73,0.00021443,2]
[318856409,1710436239104,-697.7871625,0.00021443,2]
[318856410,1710436239113,-155.13496742,0.00021516,2]
[318856411,1710436239122,-11424.54813108,0.00021517,2]
[318856412,1710436239135,-5370.09504995,0.00021517,2]
[318856413,1710436239146,-1684.0,0.00021517,2]
[318856414,1710436239157,-1428.6,0.00021517,2]
[318856442,1710436240499,-1737.65913271,0.00021516,2]
[318856443,1710436240510,-34608.70453416,0.00021517,2]
[318856445,1710436240519,-378.81657837,0.00021517,2]
[318856447,1710436240529,-14856.43739437,0.00021518,60]
[318856449,1710436240540,-71357.68688621,0.00021518,60]
[318856476,1710436243476,-11374.12469204,0.00021518,60]
[318856477,1710436243496,-9459.42757629,0.00021518,60]
[318856478,1710436243507,-6009.52140006,0.00021518,60]
[318856479,1710436243518,-339.46000004,0.00021518,60]
[318856480,1710436243541,-3744.62504942,0.00021518,60]
[318856644,1710436247024,-363.94005668,0.00021517,2]
[318856645,1710436247034,-455.19155185,0.00021517,2]
[318856646,1710436247044,-118164.61738358,0.00021518,60]
[318856647,1710436247086,-13639.05478842,0.00021518,60]
[318856648,1710436247098,-3954.10651767,0.00021518,60]
[318856649,1710436247109,-6987.0,0.00021518,60]
[318856650,1710436247120,-487.25,0.00021518,60]
[318856651,1710436247131,-712.0,0.00021518,60]
[318856847,1710436549813,3674.37414345,0.00025,120]
[318856848,1710436809128,430.16617339,0.00019121,2]
[318856985,1710437347396,146.887499,0.00018625,2]
[318857083,1710437432871,-184.71260849,0.00018622,2]
[318857085,1710437432881,-280.71313691,0.00018623,2]
[318857087,1710437432894,-103.112501,0.00018625,2]
[318857089,1710437432906,-3430.7329,0.00019117,2]
[318857091,1710437432917,-191.37122485,0.00019121,2]
[318857093,1710437432927,-160.094173,0.00019473,2]
[318857095,1710437432937,-2635.5689611,0.00019533,2]
[318857096,1710437432947,-1323.83680089,0.0001988,9]
[318857098,1710437432959,-300.0,0.00019999,2]
[318857100,1710437432970,-46000.0,0.0002,2]
[318857102,1710437432984,-620.07686991,0.00020077,2]
[318857104,1710437432995,-2000.0,0.0002032,2]
[318857106,1710437433005,-12533.36495715,0.00021219,2]
[318857108,1710437433017,-2348.0240684,0.00021223,2]
[318857110,1710437433027,-165.63575518,0.0002141,2]
[318857111,1710437433038,-566.49342459,0.00021418,2]
[318857113,1710437433049,-7947.9714481,0.00021495,2]
[318857115,1710437433060,-1491.0,0.00021498,9]
[318857117,1710437433072,-330.9015158,0.00021516,2]
[318857119,1710437433082,-3500.01988252,0.00021516,2]
[318857121,1710437433093,-404.53047881,0.00021516,2]
[318857123,1710437433105,-558.3857874,0.00021516,2]
[318857125,1710437433116,-180.89857176,0.00021516,2]
[318857127,1710437433128,-499.52179918,0.00021516,2]
[318857129,1710437433139,-504.68193601,0.00021517,2]
[318857131,1710437433151,-480.41306867,0.00021517,2]
[318857133,1710437433161,-500.0,0.00021517,2]
[318857135,1710437433171,-160.10586083,0.00021517,2]
[318857137,1710437433182,-500.0,0.00021519,2]
[318857138,1710437433193,-500.0,0.00021519,2]
[318857140,1710437433204,-500.0,0.00021519,2]
[318857142,1710437433216,-500.0,0.00021519,2]
[318857144,1710437433231,-500.0,0.00021519,2]
[318857146,1710437433245,-500.0,0.00021519,2]
[318857148,1710437433256,-209.25943313,0.00021519,2]
[318857150,1710437433268,-500.0,0.00021519,2]
[318857152,1710437433278,-500.0,0.00021519,2]
[318857154,1710437433287,-500.0,0.00021519,2]
[318857156,1710437433297,-500.0,0.00021519,2]
[318857158,1710437433306,-500.0,0.00021519,2]
[318857159,1710437433315,-500.0,0.00021519,2]
[318857161,1710437433325,-500.0,0.00021519,2]
[318857163,1710437433336,-203.29190553,0.00021519,2]
[318857165,1710437433345,-500.0,0.00021519,2]
[318857167,1710437433355,-500.0,0.00021519,2]
[318857169,1710437433367,-283.16181746,0.00021519,2]
[318857171,1710437433377,-502.7278985,0.00021519,2]
[318857173,1710437433388,-429.33176006,0.00021519,2]
[318857175,1710437433399,-516.850155,0.00021519,2]
[318857177,1710437433408,-500.0,0.00021519,2]
[318857178,1710437433419,-500.0,0.00021519,2]
[318857180,1710437433429,-500.0,0.00021519,2]
[318857182,1710437433440,-500.0,0.00021519,2]
[318857184,1710437433452,-501.3212413,0.00021519,2]
[318857186,1710437433462,-500.0,0.00021519,2]
[318857188,1710437433475,-500.0,0.00021519,2]
[318857190,1710437433489,-500.0,0.00021519,2]
[318857192,1710437433499,-500.0,0.00021519,2]
[318857194,1710437433509,-500.0,0.00021519,2]
[318857196,1710437433520,-500.0,0.00021519,2]
[318857198,1710437433531,-500.0,0.00021519,2]
[318857200,1710437433541,-500.0,0.00021519,2]
[318857202,1710437433551,-358.09678446,0.00021519,2]
[318857203,1710437433562,-500.0,0.00021519,2]
[318857205,1710437433572,-505.43267185,0.00021519,2]
[318857217,1710437433698,-500.0,0.00021519,2]
[318857219,1710437433707,-500.0,0.00021519,2]
[318857221,1710437433716,-500.0,0.00021519,2]
[318857223,1710437433726,-500.0,0.00021519,2]
[318857225,1710437433738,-500.0,0.00021519,2]
[318857226,1710437433747,-213.20150109,0.00021519,2]
[318857228,1710437433757,-500.0,0.00021519,2]
[318857230,1710437433766,-500.0,0.00021519,2]
[318857232,1710437433777,-500.0,0.00021519,2]
[318857234,1710437433785,-500.0,0.00021519,2]
[318857236,1710437433795,-494.44,0.00021519,2]
[318857237,1710437433804,-500.0,0.00021519,2]
[318857239,1710437433812,-500.0,0.00021519,2]
[318857241,1710437433822,-500.0,0.00021519,2]
[318857243,1710437433831,-571.01,0.00021519,2]
[318857245,1710437433840,-500.0,0.00021519,2]
[318857247,1710437433849,-500.0,0.00021519,2]
[318857249,1710437433858,-500.0,0.00021519,2]
[318857250,1710437433867,-500.0,0.00021519,2]
[318857251,1710437433876,-411.95976718,0.00021519,2]
[318857252,1710437433885,-560.83445176,0.00021519,2]
[318857253,1710437433894,-500.0,0.00021519,2]
[318857254,1710437433903,-500.0,0.00021519,2]
[318857255,1710437433911,-500.0,0.00021519,2]
[318857256,1710437433920,-5939.46061013,0.00021522,15]
[318857257,1710437433930,-303.0,0.00021522,2]
[318857258,1710437433939,-301.0,0.00021522,2]
[318857259,1710437433948,-300.0,0.00021522,2]
[318857260,1710437433957,-160.10212313,0.00021533,2]
[318857261,1710437433966,-500.0,0.00021533,2]
[318857262,1710437433975,-500.0,0.00021533,2]
[318857263,1710437433985,-500.0,0.00021534,2]
[318857264,1710437433994,-500.0,0.00021534,2]
[318857265,1710437434004,-547.75457667,0.00021534,2]
[318857266,1710437434013,-500.0,0.00021534,2]
[318857267,1710437434022,-500.0,0.00021534,2]
[318857268,1710437434031,-500.0,0.00021534,2]
[318857269,1710437434040,-457.55222704,0.00021534,2]
[318857270,1710437434049,-500.0,0.00021534,2]
[318857271,1710437434058,-644.34402201,0.00021534,2]
[318857272,1710437434068,-500.0,0.00021534,2]
[318857273,1710437434079,-500.0,0.00021534,2]
[318857274,1710437434088,-500.0,0.00021534,2]
[318857275,1710437434097,-500.0,0.00021534,2]
[318857276,1710437434106,-500.0,0.00021534,2]
[318857277,1710437434114,-500.0,0.00021534,2]
[318857278,1710437434123,-397.15789677,0.00021534,2]
[318857279,1710437434133,-500.0,0.00021534,2]
[318857280,1710437434141,-500.0,0.00021534,2]
[318857281,1710437434150,-512.5620293,0.00021534,2]
[318857282,1710437434159,-420.27774255,0.00021534,2]
[318857283,1710437434168,-500.0,0.00021534,2]
[318857284,1710437434177,-227.67572191,0.00021534,2]
[318857285,1710437434187,-500.0,0.00021534,2]
[318857286,1710437434196,-500.0,0.00021534,2]
[318857287,1710437434205,-562.44156691,0.00021534,2]
[318857288,1710437434214,-500.0,0.00021534,2]
[318857289,1710437434223,-623.39122027,0.00021534,2]
[318857290,1710437434235,-500.0,0.00021534,2]
[318857291,1710437434244,-500.0,0.00021534,2]
[318857292,1710437434253,-516.97550902,0.00021534,2]
[318857293,1710437434263,-388.92377357,0.00021534,2]
[318857294,1710437434272,-247.81351991,0.00021534,2]
[318857295,1710437434281,-500.0,0.00021534,2]
[318857296,1710437434290,-155.21108708,0.00021534,2]
[318857297,1710437434298,-500.0,0.00021534,2]
[318857299,1710437434307,-500.0,0.00021534,2]
[318857300,1710437434316,-500.0,0.00021534,2]
[318857301,1710437434326,-500.0,0.00021534,2]
[318857303,1710437434336,-255.33622864,0.00021534,2]
[318857305,1710437434350,-244.66377136,0.00021534,2]
[318857307,1710437434359,-500.0,0.00021534,2]
[318857309,1710437434370,-500.0,0.00021534,2]
[318857311,1710437434379,-500.0,0.00021534,2]
[318857313,1710437434388,-500.0,0.00021534,2]
[318857315,1710437434398,-379.34071534,0.00021534,2]
[318857317,1710437434407,-500.0,0.00021534,2]
[318857318,1710437434416,-500.0,0.00021534,2]
[318857320,1710437434425,-500.0,0.00021534,2]
[318857322,1710437434435,-500.0,0.00021534,2]
[318857325,1710437434446,-500.0,0.00021534,2]
[318857326,1710437434457,-500.0,0.00021534,2]
[318857328,1710437434466,-500.0,0.00021534,2]
[318857331,1710437434476,-500.0,0.00021534,2]
[318857333,1710437434489,-500.0,0.00021534,2]
[318857334,1710437434498,-500.0,0.00021534,2]
[318857336,1710437434508,-500.0,0.00021534,2]
[318857338,1710437434517,-500.0,0.00021534,2]
[318857340,1710437434527,-550.0,0.00021534,2]
[318857342,1710437434537,-1362.90584489,0.00021607,2]
[318857345,1710437434547,-740.64774421,0.00021705,2]
[318857346,1710437434556,-3537.25686922,0.00021705,2]
[318857348,1710437434566,-500.0,0.00021706,2]
[318857350,1710437434575,-500.0,0.00021706,2]
[318857352,1710437434584,-500.0,0.00021706,2]
[318857354,1710437434593,-556.53881461,0.00021706,2]
[318857357,1710437434603,-500.0,0.00021706,2]
[318857358,1710437434612,-500.0,0.00021706,2]
[318857361,1710437434621,-500.0,0.00021706,2]
[318857363,1710437434631,-500.0,0.00021706,2]
[318857365,1710437434640,-500.0,0.00021706,2]
[318857367,1710437434650,-500.0,0.00021706,2]
[318857369,1710437434659,-500.0,0.00021706,2]
[318857370,1710437434668,-500.0,0.00021706,2]
[318857372,1710437434677,-500.0,0.00021706,2]
[318857374,1710437434687,-500.0,0.00021706,2]
[318857376,1710437434696,-500.0,0.00021706,2]
[318857378,1710437434705,-500.0,0.00021706,2]
[318857380,1710437434714,-500.0,0.00021706,2]
[318857382,1710437434723,-500.0,0.00021706,2]
[318857384,1710437434735,-500.0,0.00021706,2]
[318857386,1710437434745,-500.0,0.00021706,2]
[318857388,1710437434756,-500.0,0.00021706,2]
[318857390,1710437434765,-500.0,0.00021706,2]
[318857392,1710437434775,-500.0,0.00021706,2]
[318857394,1710437434783,-500.0,0.00021706,2]
[318857396,1710437434792,-500.0,0.00021706,2]
[318857398,1710437434801,-500.0,0.00021706,2]
[318857400,1710437434810,-500.0,0.00021706,2]
[318857402,1710437434819,-500.0,0.00021706,2]
[318857403,1710437434829,-500.0,0.00021706,2]
[318857406,1710437434838,-500.0,0.00021706,2]
[318857407,1710437434847,-500.0,0.00021706,2]
[318857409,1710437434857,-500.0,0.00021706,2]
[318857411,1710437434866,-500.0,0.00021706,2]
[318857413,1710437434876,-500.0,0.00021706,2]